[Event "*** Titled Tuesday Blitz"]
[Site "Chess.com"]
[Date "2019.08.06"]
[Round "10"]
[White "Firouzja2003"]
[Black "Parhamov"]
[Result "0-1"]
[WhiteElo "2994"]
[BlackElo "2987"]
[TimeControl "180+2"]
[EndTime "15:23:23 PDT"]
[Termination "Parhamov won by resignation"]

1. d4 {[%clk 0:02:25.2]} 1... Nf6 {[%clk 0:02:58.9]} 2. Nf3 {[%clk 0:02:25.9]}
2... g6 {[%clk 0:02:59.4]} 3. c4 {[%clk 0:02:25.9]} 3... Bg7 {[%clk 0:03:00.7]}
4. Nc3 {[%clk 0:02:26.8]} 4... d5 {[%clk 0:03:02.1]} 5. Bg5 {[%clk 0:02:26.3]}
5... Ne4 {[%clk 0:03:00.8]} 6. Bf4 {[%clk 0:02:25.9]} 6... Nxc3 {[%clk
0:02:52.9]} 7. bxc3 {[%clk 0:02:27.8]} 7... c5 {[%clk 0:02:54.3]} 8. cxd5 {[%clk
0:02:26.2]} 8... Qxd5 {[%clk 0:02:54.8]} 9. e3 {[%clk 0:02:26.8]} 9... Nc6
{[%clk 0:02:55.9]} 10. Qa4 {[%clk 0:02:22.5]} 10... cxd4 {[%clk 0:02:53.5]} 11.
cxd4 {[%clk 0:02:20]} 11... Bd7 {[%clk 0:02:50.5]} 12. Bc4 {[%clk 0:02:16.4]}
12... Qa5+ {[%clk 0:02:51.5]} 13. Qxa5 {[%clk 0:02:16.2]} 13... Nxa5 {[%clk
0:02:53.4]} 14. Bd3 {[%clk 0:02:16.9]} 14... O-O {[%clk 0:02:47.8]} 15. Ke2
{[%clk 0:02:11.6]} 15... Rac8 {[%clk 0:02:44.9]} 16. Rhc1 {[%clk 0:02:12.4]}
16... b5 {[%clk 0:02:41.3]} 17. Ne5 {[%clk 0:02:07.9]} 17... Bxe5 {[%clk
0:02:37.1]} 18. Bxe5 {[%clk 0:02:09.8]} 18... Nc4 {[%clk 0:02:36]} 19. Bg3
{[%clk 0:02:09.4]} 19... Be6 {[%clk 0:02:17.1]} 20. f3 {[%clk 0:02:07.2]} 20...
Rfd8 {[%clk 0:02:12.1]} 21. Bf2 {[%clk 0:02:07.8]} 21... f5 {[%clk 0:02:04.7]}
22. h3 {[%clk 0:01:59.8]} 22... a6 {[%clk 0:01:52.3]} 23. e4 {[%clk 0:01:58.6]}
23... Bd7 {[%clk 0:01:45.2]} 24. Rc2 {[%clk 0:01:35.5]} 24... Na3 {[%clk
0:01:34.7]} 25. Rxc8 {[%clk 0:01:31.7]} 25... Rxc8 {[%clk 0:01:36.6]} 26. d5
{[%clk 0:01:32.1]} 26... e6 {[%clk 0:01:33.3]} 27. d6 {[%clk 0:01:27]} 27... e5
{[%clk 0:01:27.1]} 28. Be1 {[%clk 0:00:58.1]} 28... Kf7 {[%clk 0:01:26.7]} 29.
Rd1 {[%clk 0:00:46.6]} 29... f4 {[%clk 0:01:16.2]} 30. Ba5 {[%clk 0:00:46.6]}
30... Rc6 {[%clk 0:01:11.7]} 31. Bc7 {[%clk 0:00:41.5]} 31... Ke6 {[%clk
0:01:10.4]} 32. Kd2 {[%clk 0:00:40.1]} 32... Nc4+ {[%clk 0:01:04.3]} 33. Bxc4+
{[%clk 0:00:35.2]} 33... Rxc4 {[%clk 0:01:06.2]} 34. Rc1 {[%clk 0:00:36.6]}
34... Ra4 {[%clk 0:01:04.5]} 35. Rc2 {[%clk 0:00:37.6]} 35... g5 {[%clk
0:01:02.4]} 36. Kc1 {[%clk 0:00:37.5]} 36... h5 {[%clk 0:01:03.1]} 37. Kb2
{[%clk 0:00:38.2]} 37... b4 {[%clk 0:01:03.7]} 38. Rc5 {[%clk 0:00:34]} 38...
Ra3 {[%clk 0:01:02.5]} 39. Ba5 {[%clk 0:00:35]} 39... Re3 {[%clk 0:01:00.6]} 40.
Bxb4 {[%clk 0:00:35.9]} 40... Re2+ {[%clk 0:00:58.4]} 41. Rc2 {[%clk 0:00:22.2]}
41... Bb5 {[%clk 0:00:59.2]} 42. Ba5 {[%clk 0:00:14.3]} 42... Kd7 {[%clk
0:00:57.5]} 43. Rxe2 {[%clk 0:00:13.6]} 43... Bxe2 {[%clk 0:00:59.4]} 44. Bc3
{[%clk 0:00:15.4]} 44... Kxd6 {[%clk 0:00:59.7]} 45. Ba5 {[%clk 0:00:14.8]}
45... Bf1 {[%clk 0:00:57.8]} 46. Bd8 {[%clk 0:00:14.7]} 46... Bxg2 {[%clk
0:00:59.1]} 47. Bxg5 {[%clk 0:00:15.5]} 47... Bxf3 {[%clk 0:00:58.5]} 48. Kc3
{[%clk 0:00:17]} 48... Bxe4 {[%clk 0:00:59.9]} 49. h4 {[%clk 0:00:18.7]} 49...
Ke6 {[%clk 0:01:00.8]} 50. Kd2 {[%clk 0:00:19.6]} 50... Kf5 {[%clk 0:01:02.1]}
51. Ke2 {[%clk 0:00:21.5]} 0-1

[Event "*** Titled Tuesday Blitz"]
[Site "Chess.com"]
[Date "2019.08.06"]
[Round "10"]
[White "2165149677570"]
[Black "rst2003"]
[Result "0-1"]
[WhiteElo "2307"]
[BlackElo "2328"]
[TimeControl "180+2"]
[EndTime "15:23:24 PDT"]
[Termination "rst2003 won by checkmate"]

1. e4 {[%clk 0:03:01.9]} 1... c5 {[%clk 0:03:00.1]} 2. Nf3 {[%clk 0:02:59.1]}
2... d6 {[%clk 0:03:00.9]} 3. Bb5+ {[%clk 0:02:55.6]} 3... Nd7 {[%clk
0:03:01.7]} 4. Ba4 {[%clk 0:02:57.2]} 4... a6 {[%clk 0:02:59.9]} 5. c4 {[%clk
0:02:58.5]} 5... Nf6 {[%clk 0:03:00.3]} 6. d3 {[%clk 0:02:59.1]} 6... g6 {[%clk
0:03:00.2]} 7. O-O {[%clk 0:02:59.7]} 7... Bg7 {[%clk 0:03:01.3]} 8. Re1 {[%clk
0:02:56.9]} 8... O-O {[%clk 0:03:02.1]} 9. Nc3 {[%clk 0:02:58]} 9... Ne5 {[%clk
0:02:53.3]} 10. Nxe5 {[%clk 0:02:33.3]} 10... dxe5 {[%clk 0:02:53.8]} 11. Be3
{[%clk 0:02:35.2]} 11... Qd6 {[%clk 0:02:41.9]} 12. a3 {[%clk 0:02:16]} 12...
Rd8 {[%clk 0:02:22.8]} 13. Bc2 {[%clk 0:02:16.9]} 13... Bd7 {[%clk 0:01:59.8]}
14. h3 {[%clk 0:02:09.6]} 14... b5 {[%clk 0:01:55]} 15. cxb5 {[%clk 0:01:30.9]}
15... axb5 {[%clk 0:01:55.1]} 16. a4 {[%clk 0:00:56.8]} 16... b4 {[%clk
0:01:42]} 17. Nb5 {[%clk 0:00:57.8]} 17... Qb6 {[%clk 0:01:30.3]} 18. Bb3 {[%clk
0:00:35.8]} 18... Bxb5 {[%clk 0:01:16.4]} 19. axb5 {[%clk 0:00:37.7]} 19... Qxb5
{[%clk 0:01:17.7]} 20. Bc4 {[%clk 0:00:35.1]} 20... Qb6 {[%clk 0:01:13.6]} 21.
Qb3 {[%clk 0:00:34.8]} 21... e6 {[%clk 0:01:11.4]} 22. Rec1 {[%clk 0:00:34]}
22... Bf8 {[%clk 0:01:05.5]} 23. Ra4 {[%clk 0:00:30.6]} 23... Ne8 {[%clk
0:00:59.4]} 24. Rca1 {[%clk 0:00:28.3]} 24... Rxa4 {[%clk 0:00:59.5]} 25. Rxa4
{[%clk 0:00:23.5]} 25... Nd6 {[%clk 0:00:59.2]} 26. Ra6 {[%clk 0:00:25]} 26...
Qb7 {[%clk 0:00:49.1]} 27. Qa2 {[%clk 0:00:12.7]} 27... Nxc4 {[%clk 0:00:49.8]}
28. Qxc4 {[%clk 0:00:14.6]} 28... Ra8 {[%clk 0:00:43.9]} 29. Rxa8 {[%clk
0:00:14.9]} 29... Qxa8 {[%clk 0:00:45.8]} 30. Bxc5 {[%clk 0:00:16]} 30... Bxc5
{[%clk 0:00:45.9]} 31. Qxc5 {[%clk 0:00:17.1]} 31... Qa1+ {[%clk 0:00:47.4]} 32.
Kh2 {[%clk 0:00:18.7]} 32... Qxb2 {[%clk 0:00:48.9]} 33. h4 {[%clk 0:00:14.8]}
33... Qc3 {[%clk 0:00:49.5]} 34. Qb5 {[%clk 0:00:09.6]} 34... h5 {[%clk
0:00:44.6]} 35. g4 {[%clk 0:00:09.1]} 35... hxg4 {[%clk 0:00:45]} 36. h5 {[%clk
0:00:10.7]} 36... gxh5 {[%clk 0:00:44.8]} 37. Qe8+ {[%clk 0:00:11.8]} 37... Kg7
{[%clk 0:00:45.9]} 38. Qd8 {[%clk 0:00:12.4]} 38... Qd2 {[%clk 0:00:46.5]} 39.
Kg2 {[%clk 0:00:13.6]} 39... b3 {[%clk 0:00:46.2]} 40. Qb8 {[%clk 0:00:14.9]}
40... b2 {[%clk 0:00:47.4]} 41. Qxe5+ {[%clk 0:00:16.5]} 41... Kg6 {[%clk
0:00:47.2]} 42. Qb5 {[%clk 0:00:14.5]} 42... Qc1 {[%clk 0:00:48.1]} 43. Qe8
{[%clk 0:00:07.3]} 43... b1=Q {[%clk 0:00:49.1]} 44. Qg8+ {[%clk 0:00:08.9]}
44... Kf6 {[%clk 0:00:50.2]} 45. Qd8+ {[%clk 0:00:09.9]} 45... Kg7 {[%clk
0:00:50.8]} 46. e5 {[%clk 0:00:07.1]} 46... Qg1# {[%clk 0:00:50.3]} 0-1

[Event "*** Titled Tuesday Blitz"]
[Site "Chess.com"]
[Date "2019.08.06"]
[Round "10"]
[White "nocnypako"]
[Black "mikhaillushenkov"]
[Result "1-0"]
[WhiteElo "2599"]
[BlackElo "2665"]
[TimeControl "180+2"]
[EndTime "15:23:29 PDT"]
[Termination "nocnypako won by resignation"]

1. d4 {[%clk 0:03:01.9]} 1... Nf6 {[%clk 0:03:01]} 2. c4 {[%clk 0:03:02.6]} 2...
e6 {[%clk 0:03:02.2]} 3. Nc3 {[%clk 0:03:03]} 3... Bb4 {[%clk 0:03:03.2]} 4. e3
{[%clk 0:03:04]} 4... d5 {[%clk 0:03:04.2]} 5. a3 {[%clk 0:03:01.5]} 5... Be7
{[%clk 0:03:04.4]} 6. Nf3 {[%clk 0:02:57.1]} 6... c5 {[%clk 0:02:58.8]} 7. dxc5
{[%clk 0:02:52.6]} 7... Bxc5 {[%clk 0:02:58.6]} 8. cxd5 {[%clk 0:02:53.6]} 8...
exd5 {[%clk 0:02:59.8]} 9. Bd3 {[%clk 0:02:55]} 9... O-O {[%clk 0:03:00.2]} 10.
O-O {[%clk 0:02:56.6]} 10... Nc6 {[%clk 0:03:00.9]} 11. b4 {[%clk 0:02:55]}
11... Bd6 {[%clk 0:03:01.5]} 12. Ne2 {[%clk 0:02:56.4]} 12... Bg4 {[%clk
0:03:01]} 13. Ned4 {[%clk 0:02:52.3]} 13... Ne4 {[%clk 0:02:58.8]} 14. h3 {[%clk
0:02:51.6]} 14... Bh5 {[%clk 0:02:59.8]} 15. Bb2 {[%clk 0:02:47.8]} 15... a6
{[%clk 0:02:56.3]} 16. Nxc6 {[%clk 0:02:34.9]} 16... bxc6 {[%clk 0:02:57.5]} 17.
Bxe4 {[%clk 0:02:36.4]} 17... dxe4 {[%clk 0:02:55.6]} 18. Qd4 {[%clk 0:02:37.9]}
18... Qf6 {[%clk 0:02:45.6]} 19. Qxf6 {[%clk 0:02:34.3]} 19... gxf6 {[%clk
0:02:47.5]} 20. Nd2 {[%clk 0:02:28]} 20... f5 {[%clk 0:02:48.4]} 21. Rfc1 {[%clk
0:02:24]} 21... Rfc8 {[%clk 0:02:47.6]} 22. Nc4 {[%clk 0:02:21.5]} 22... Bc7
{[%clk 0:02:47.2]} 23. Be5 {[%clk 0:02:23.1]} 23... Bd8 {[%clk 0:02:38.9]} 24.
Nd6 {[%clk 0:02:22.4]} 24... Bg6 {[%clk 0:02:37.8]} 25. Nxc8 {[%clk 0:02:21.3]}
25... Rxc8 {[%clk 0:02:39.7]} 26. Rc3 {[%clk 0:02:19.8]} 26... f6 {[%clk
0:02:36.9]} 27. Bf4 {[%clk 0:02:07.2]} 27... Bf7 {[%clk 0:02:35.1]} 28. Rd1
{[%clk 0:02:07]} 28... Be8 {[%clk 0:02:34]} 29. a4 {[%clk 0:01:47.3]} 29... Ra8
{[%clk 0:02:27.5]} 30. Rd4 {[%clk 0:01:09.9]} 30... Kf7 {[%clk 0:02:20.3]} 31.
Rdc4 {[%clk 0:01:03]} 31... Be7 {[%clk 0:02:19.1]} 32. Rd4 {[%clk 0:00:58.5]}
32... Ra7 {[%clk 0:02:16.4]} 33. Bd6 {[%clk 0:00:58.3]} 33... Bd8 {[%clk
0:02:13.7]} 34. Bb8 {[%clk 0:00:57.3]} 34... Rd7 {[%clk 0:02:10.4]} 35. Rxd7+
{[%clk 0:00:57.7]} 35... Bxd7 {[%clk 0:02:12.3]} 36. Bd6 {[%clk 0:00:58.2]}
36... Ke6 {[%clk 0:02:10.6]} 37. Bc5 {[%clk 0:00:59.1]} 37... Bc7 {[%clk
0:02:10.6]} 38. Rc2 {[%clk 0:00:57.4]} 38... f4 {[%clk 0:02:10]} 39. exf4 {[%clk
0:00:56.4]} 39... Bxf4 {[%clk 0:02:11.9]} 40. Be3 {[%clk 0:00:57.3]} 40... Bd6
{[%clk 0:02:12.3]} 41. Rb2 {[%clk 0:00:57.9]} 41... Be5 {[%clk 0:02:12.9]} 42.
Rb1 {[%clk 0:00:57.2]} 42... f5 {[%clk 0:02:14]} 43. g3 {[%clk 0:00:57.2]} 43...
h5 {[%clk 0:02:12.6]} 44. h4 {[%clk 0:00:57.6]} 44... Kd5 {[%clk 0:02:13.4]} 45.
Rd1+ {[%clk 0:00:57.2]} 45... Ke6 {[%clk 0:02:14.3]} 46. Bc5 {[%clk 0:00:58.4]}
46... f4 {[%clk 0:02:10.7]} 47. gxf4 {[%clk 0:01:00.3]} 47... Bxf4 {[%clk
0:02:12.6]} 48. Re1 {[%clk 0:00:53.3]} 48... Kd5 {[%clk 0:02:13.2]} 49. Rd1+
{[%clk 0:00:54.1]} 49... Ke6 {[%clk 0:02:14.1]} 50. Rd4 {[%clk 0:00:54.5]} 50...
Be5 {[%clk 0:02:07.1]} 51. Rxe4 {[%clk 0:00:55]} 51... Kd5 {[%clk 0:02:08.6]}
52. Re1 {[%clk 0:00:55.2]} 52... Bg4 {[%clk 0:02:07.8]} 53. Kg2 {[%clk
0:00:51.2]} 53... Bc3 {[%clk 0:02:05.7]} 54. Re8 {[%clk 0:00:49.4]} 54... a5
{[%clk 0:02:05.4]} 55. Rb8 {[%clk 0:00:30.4]} 55... Kc4 {[%clk 0:02:06.3]} 56.
bxa5 {[%clk 0:00:30.5]} 56... Bxa5 {[%clk 0:02:04]} 57. Be3 {[%clk 0:00:30.2]}
57... Bb4 {[%clk 0:02:00.4]} 58. Bb6 {[%clk 0:00:29.2]} 58... Be6 {[%clk
0:01:58]} 59. a5 {[%clk 0:00:28.5]} 59... Bd5+ {[%clk 0:01:58]} 60. f3 {[%clk
0:00:29.6]} 60... Bd6 {[%clk 0:01:51.7]} 61. Rd8 {[%clk 0:00:22.9]} 61... Be7
{[%clk 0:01:50.1]} 62. Rxd5 {[%clk 0:00:21]} 1-0

[Event "*** Titled Tuesday Blitz"]
[Site "Chess.com"]
[Date "2019.08.06"]
[Round "10"]
[White "Leonid_Starozhilov"]
[Black "Olga_Girya"]
[Result "1-0"]
[WhiteElo "2679"]
[BlackElo "2493"]
[TimeControl "180+2"]
[EndTime "15:23:30 PDT"]
[Termination "Leonid_Starozhilov won by resignation"]

1. b3 {[%clk 0:03:01.9]} 1... d5 {[%clk 0:02:59.8]} 2. Bb2 {[%clk 0:03:03.1]}
2... Nf6 {[%clk 0:03:01.5]} 3. Nf3 {[%clk 0:03:02.8]} 3... Bf5 {[%clk
0:03:02.9]} 4. e3 {[%clk 0:03:04]} 4... e6 {[%clk 0:03:04.2]} 5. c4 {[%clk
0:03:05.5]} 5... h6 {[%clk 0:03:02.5]} 6. Be2 {[%clk 0:03:06.4]} 6... Be7 {[%clk
0:03:02.3]} 7. O-O {[%clk 0:03:07.8]} 7... O-O {[%clk 0:03:03]} 8. d4 {[%clk
0:03:08.5]} 8... Nbd7 {[%clk 0:03:02.6]} 9. Nc3 {[%clk 0:03:09.5]} 9... c6
{[%clk 0:03:03.6]} 10. Bd3 {[%clk 0:03:10.1]} 10... Bxd3 {[%clk 0:02:59.9]} 11.
Qxd3 {[%clk 0:03:12]} 11... Bb4 {[%clk 0:02:57.3]} 12. a3 {[%clk 0:03:00.9]}
12... Bxc3 {[%clk 0:02:58.1]} 13. Bxc3 {[%clk 0:03:02.8]} 13... Ne4 {[%clk
0:02:58.9]} 14. Bb2 {[%clk 0:03:03.5]} 14... f5 {[%clk 0:02:58.1]} 15. cxd5
{[%clk 0:02:54.4]} 15... exd5 {[%clk 0:02:58.8]} 16. Ne5 {[%clk 0:02:55.3]}
16... Nxe5 {[%clk 0:02:58.5]} 17. dxe5 {[%clk 0:02:56.8]} 17... Qb6 {[%clk
0:02:52.4]} 18. b4 {[%clk 0:02:45.9]} 18... a5 {[%clk 0:02:49.7]} 19. Bd4 {[%clk
0:02:45.1]} 19... Qa6 {[%clk 0:02:51.2]} 20. Qc2 {[%clk 0:02:27.7]} 20... axb4
{[%clk 0:02:43.3]} 21. axb4 {[%clk 0:02:26]} 21... Qb5 {[%clk 0:02:39.9]} 22. h4
{[%clk 0:01:36.9]} 22... Qxb4 {[%clk 0:02:14.8]} 23. Rab1 {[%clk 0:01:24.6]}
23... Qe7 {[%clk 0:02:13.4]} 24. g3 {[%clk 0:00:56.8]} 24... Rf7 {[%clk
0:01:33.7]} 25. Rb6 {[%clk 0:00:50.2]} 25... Rc8 {[%clk 0:01:05.6]} 26. Rfb1
{[%clk 0:00:48.8]} 26... Rc7 {[%clk 0:01:06.3]} 27. Kg2 {[%clk 0:00:41.4]} 27...
c5 {[%clk 0:00:50.6]} 28. e6 {[%clk 0:00:42.5]} 28... cxd4 {[%clk 0:00:40.4]}
29. exf7+ {[%clk 0:00:43.5]} 29... Qxf7 {[%clk 0:00:42]} 30. Qd3 {[%clk
0:00:32.8]} 30... dxe3 {[%clk 0:00:37.2]} 31. Qxe3 {[%clk 0:00:33.2]} 31... Kh7
{[%clk 0:00:36.9]} 32. Qd4 {[%clk 0:00:33.6]} 32... Rc4 {[%clk 0:00:26.6]} 33.
Qe5 {[%clk 0:00:25.9]} 33... Rc7 {[%clk 0:00:17]} 34. Rd1 {[%clk 0:00:22.3]}
34... Rd7 {[%clk 0:00:18]} 35. Rb5 {[%clk 0:00:21.9]} 35... Qh5 {[%clk
0:00:15.5]} 36. Rbxd5 {[%clk 0:00:20.9]} 36... Rf7 {[%clk 0:00:11.5]} 37. Qf4
{[%clk 0:00:15.4]} 37... Qe2 {[%clk 0:00:12.3]} 38. Rd7 {[%clk 0:00:13]} 38...
Rxd7 {[%clk 0:00:11.3]} 39. Qxf5+ {[%clk 0:00:13.6]} 39... Kh8 {[%clk
0:00:08.8]} 40. Rxd7 {[%clk 0:00:12.6]} 1-0

[Event "*** Titled Tuesday Blitz"]
[Site "Chess.com"]
[Date "2019.08.06"]
[Round "10"]
[White "doons21"]
[Black "warmoatmeal"]
[Result "1-0"]
[WhiteElo "2575"]
[BlackElo "2051"]
[TimeControl "180+2"]
[EndTime "15:23:36 PDT"]
[Termination "doons21 won on time"]

1. e4 {[%clk 0:03:01.9]} 1... c5 {[%clk 0:03:00.4]} 2. c3 {[%clk 0:03:03.4]}
2... Nc6 {[%clk 0:02:56.8]} 3. d4 {[%clk 0:03:04.2]} 3... cxd4 {[%clk
0:02:57.6]} 4. cxd4 {[%clk 0:03:06.1]} 4... d5 {[%clk 0:02:58.5]} 5. exd5 {[%clk
0:03:08]} 5... Qxd5 {[%clk 0:02:59.3]} 6. Nf3 {[%clk 0:03:09.9]} 6... Bg4 {[%clk
0:02:58.4]} 7. Be2 {[%clk 0:03:08.9]} 7... e6 {[%clk 0:02:52.7]} 8. O-O {[%clk
0:03:09.1]} 8... Nf6 {[%clk 0:02:49.2]} 9. Nc3 {[%clk 0:03:08.5]} 9... Qd7
{[%clk 0:02:46.7]} 10. Qb3 {[%clk 0:02:55.3]} 10... Be7 {[%clk 0:02:44.3]} 11.
Rd1 {[%clk 0:02:55]} 11... Bxf3 {[%clk 0:02:15.8]} 12. Bxf3 {[%clk 0:02:53.5]}
12... Nxd4 {[%clk 0:02:16.4]} 13. Qxb7 {[%clk 0:02:52.1]} 13... Ne2+ {[%clk
0:01:49.3]} 14. Kf1 {[%clk 0:02:28.4]} 14... Qxb7 {[%clk 0:01:45.5]} 15. Bxb7
{[%clk 0:02:25.8]} 15... Nxc3 {[%clk 0:01:44.3]} 16. Bc6+ {[%clk 0:02:25.9]}
16... Kf8 {[%clk 0:01:43.4]} 17. Bxa8 {[%clk 0:01:38.4]} 17... Nxd1 {[%clk
0:01:43.8]} 18. Bf3 {[%clk 0:01:39.8]} 18... Nxb2 {[%clk 0:01:30.2]} 19. Bxb2
{[%clk 0:01:40.4]} 19... Bd6 {[%clk 0:01:31.4]} 20. Bd4 {[%clk 0:01:31.8]} 20...
a5 {[%clk 0:01:00.9]} 21. Rb1 {[%clk 0:01:21.9]} 21... e5 {[%clk 0:00:39.5]} 22.
Bc3 {[%clk 0:01:04.4]} 22... e4 {[%clk 0:00:17.8]} 23. Be2 {[%clk 0:01:04.9]}
23... Ke7 {[%clk 0:00:18.8]} 24. Bxa5 {[%clk 0:01:05.2]} 24... Rb8 {[%clk
0:00:18.6]} 25. Rxb8 {[%clk 0:00:55.6]} 25... Bxb8 {[%clk 0:00:18.8]} 26. h4
{[%clk 0:00:50.2]} 26... Nd5 {[%clk 0:00:18.4]} 27. Bc4 {[%clk 0:00:47.7]} 27...
Kd6 {[%clk 0:00:16.9]} 28. Bd2 {[%clk 0:00:41]} 28... Kc5 {[%clk 0:00:16.9]} 29.
Bb3 {[%clk 0:00:41.5]} 29... f5 {[%clk 0:00:16.6]} 30. Bc2 {[%clk 0:00:37.2]}
30... Be5 {[%clk 0:00:16.4]} 31. g4 {[%clk 0:00:33.8]} 31... g6 {[%clk
0:00:13.9]} 32. h5 {[%clk 0:00:31]} 32... Kd4 {[%clk 0:00:09.7]} 33. gxf5 {[%clk
0:00:31.5]} 33... gxf5 {[%clk 0:00:10.7]} 34. Bb3 {[%clk 0:00:31.7]} 34... Bf4
{[%clk 0:00:10.7]} 35. Ba5 {[%clk 0:00:18.1]} 35... Ne7 {[%clk 0:00:09.3]} 36.
Bb6+ {[%clk 0:00:16.8]} 36... Ke5 {[%clk 0:00:09.5]} 37. Bc7+ {[%clk 0:00:16.9]}
37... Kd4 {[%clk 0:00:06.2]} 38. Bxf4 {[%clk 0:00:18]} 38... Nd5 {[%clk
0:00:06.6]} 39. Bxd5 {[%clk 0:00:18.4]} 1-0

[Event "*** Titled Tuesday Blitz"]
[Site "Chess.com"]
[Date "2019.08.06"]
[Round "10"]
[White "santosalberto1987"]
[Black "imdvb6307"]
[Result "1/2-1/2"]
[WhiteElo "2454"]
[BlackElo "2389"]
[TimeControl "180+2"]
[EndTime "15:23:44 PDT"]
[Termination "Game drawn by stalemate"]

1. e4 {[%clk 0:03:01.9]} 1... e5 {[%clk 0:03:00.1]} 2. Nf3 {[%clk 0:03:01.7]}
2... Nf6 {[%clk 0:03:01.2]} 3. Nxe5 {[%clk 0:03:01.5]} 3... d6 {[%clk
0:03:02.4]} 4. Nf3 {[%clk 0:03:02.6]} 4... Nxe4 {[%clk 0:03:03.6]} 5. Nc3 {[%clk
0:03:03.8]} 5... Nf6 {[%clk 0:03:03.7]} 6. d4 {[%clk 0:03:00.3]} 6... Be7 {[%clk
0:03:04.8]} 7. Bd3 {[%clk 0:03:00.1]} 7... O-O {[%clk 0:03:04.2]} 8. O-O {[%clk
0:02:53.8]} 8... d5 {[%clk 0:03:04.8]} 9. Ne2 {[%clk 0:02:47.8]} 9... Nc6 {[%clk
0:03:01.5]} 10. c3 {[%clk 0:02:47.1]} 10... Bg4 {[%clk 0:02:59]} 11. Ng3 {[%clk
0:02:47.7]} 11... Nh5 {[%clk 0:02:38.5]} 12. Nf5 {[%clk 0:02:41]} 12... Re8
{[%clk 0:02:12.3]} 13. Nxe7+ {[%clk 0:02:38.9]} 13... Nxe7 {[%clk 0:02:08.6]}
14. h3 {[%clk 0:02:39.2]} 14... Bf5 {[%clk 0:02:09.1]} 15. Bxf5 {[%clk
0:02:37.2]} 15... Nxf5 {[%clk 0:02:07.3]} 16. g4 {[%clk 0:02:37.7]} 16... Nf6
{[%clk 0:00:40.3]} 17. gxf5 {[%clk 0:02:36.6]} 17... Qd7 {[%clk 0:00:40.8]} 18.
Ne5 {[%clk 0:02:27]} 18... Qxf5 {[%clk 0:00:40.1]} 19. Qf3 {[%clk 0:02:28.5]}
19... Rxe5 {[%clk 0:00:40.6]} 20. Qxf5 {[%clk 0:02:26.5]} 20... Rxf5 {[%clk
0:00:41.5]} 21. Re1 {[%clk 0:02:24.5]} 21... Re8 {[%clk 0:00:30.6]} 22. Bd2
{[%clk 0:02:22.7]} 22... Ne4 {[%clk 0:00:24.9]} 23. Be3 {[%clk 0:02:21.7]} 23...
Kf8 {[%clk 0:00:24.8]} 24. Kg2 {[%clk 0:02:21.7]} 24... Rf6 {[%clk 0:00:21.5]}
25. f3 {[%clk 0:02:20.8]} 25... Nd6 {[%clk 0:00:22.5]} 26. b3 {[%clk 0:02:13.8]}
26... Rfe6 {[%clk 0:00:23.3]} 27. Bf2 {[%clk 0:02:13.3]} 27... Nf5 {[%clk
0:00:23.3]} 28. Rxe6 {[%clk 0:02:11.6]} 28... Rxe6 {[%clk 0:00:24.2]} 29. Re1
{[%clk 0:02:13]} 29... Ke7 {[%clk 0:00:25.2]} 30. Rxe6+ {[%clk 0:02:12.7]} 30...
Kxe6 {[%clk 0:00:25.7]} 31. Kf1 {[%clk 0:02:14.2]} 31... g5 {[%clk 0:00:26.1]}
32. Ke2 {[%clk 0:02:14.7]} 32... Kd6 {[%clk 0:00:24.9]} 33. Kd3 {[%clk
0:02:15.4]} 33... b6 {[%clk 0:00:24.3]} 34. c4 {[%clk 0:02:15.6]} 34... c5
{[%clk 0:00:23.1]} 35. dxc5+ {[%clk 0:02:13.8]} 35... bxc5 {[%clk 0:00:24.1]}
36. cxd5 {[%clk 0:02:13.4]} 36... Kxd5 {[%clk 0:00:24.6]} 37. b4 {[%clk
0:01:52.4]} 37... c4+ {[%clk 0:00:07.8]} 38. Kc3 {[%clk 0:01:40.3]} 38... a6
{[%clk 0:00:08.9]} 39. a4 {[%clk 0:01:39.8]} 39... Nd6 {[%clk 0:00:07.7]} 40.
Bc5 {[%clk 0:01:37.3]} 40... Nb7 {[%clk 0:00:07.9]} 41. Be3 {[%clk 0:01:36.3]}
41... f6 {[%clk 0:00:07.4]} 42. b5 {[%clk 0:01:36.5]} 42... axb5 {[%clk
0:00:07]} 43. axb5 {[%clk 0:01:38.1]} 43... Nd6 {[%clk 0:00:08.4]} 44. b6 {[%clk
0:01:38.1]} 44... Kc6 {[%clk 0:00:08.5]} 45. Kb4 {[%clk 0:01:31.4]} 45... h6
{[%clk 0:00:08]} 46. f4 {[%clk 0:01:18.5]} 46... gxf4 {[%clk 0:00:07.2]} 47.
Bxf4 {[%clk 0:01:19.4]} 47... h5 {[%clk 0:00:03.4]} 48. Bxd6 {[%clk 0:01:18.8]}
48... Kxd6 {[%clk 0:00:04.4]} 49. Kxc4 {[%clk 0:01:17.3]} 49... Kc6 {[%clk
0:00:05.2]} 50. h4 {[%clk 0:01:05.1]} 50... Kxb6 {[%clk 0:00:06]} 51. Kd5 {[%clk
0:01:06.1]} 51... f5 {[%clk 0:00:04.9]} 52. Ke5 {[%clk 0:01:06.8]} 52... Kc5
{[%clk 0:00:06.2]} 53. Kxf5 {[%clk 0:01:08]} 53... Kd6 {[%clk 0:00:07.7]} 54.
Kg6 {[%clk 0:01:08.8]} 54... Ke6 {[%clk 0:00:07.9]} 55. Kxh5 {[%clk 0:01:10.3]}
55... Kf7 {[%clk 0:00:09.4]} 56. Kh6 {[%clk 0:01:11.2]} 56... Kg8 {[%clk
0:00:10.7]} 57. Kg6 {[%clk 0:01:12.7]} 57... Kh8 {[%clk 0:00:11.7]} 58. h5
{[%clk 0:01:14.3]} 58... Kg8 {[%clk 0:00:13]} 59. h6 {[%clk 0:01:16.1]} 59...
Kh8 {[%clk 0:00:14.4]} 60. h7 {[%clk 0:01:17.9]} 1/2-1/2